bitfinex/quotes_SOLUSD_20250908
["timestamp","ask_amount","ask_price","bid_price","bid_amount"]
[1757369898642,4.64597658,215.24,215.23,0.75]
[1757369899129,26.0,215.28,215.23,0.75]
[1757369899317,3.45457924,215.27,215.23,0.75]
[1757369899520,4.64509479,215.29,215.23,0.75]
[1757369900835,14.31559401,215.29,215.23,0.75]
[1757369901040,4.27118235,215.28,215.23,0.75]
[1757369901348,0.72,215.27,215.23,0.75]
[1757369901935,4.64554492,215.26,215.23,0.75]
[1757369902133,4.64554492,215.26,215.24,0.72]
[1757369902638,4.64554492,215.26,215.25,35.94]
[1757369904114,4.64532912,215.27,215.25,35.94]
[1757369904942,5.36532912,215.27,215.25,35.94]
[1757369905618,4.64532912,215.27,215.25,35.94]
[1757369906217,3.46518813,215.26,215.25,35.94]
[1757369906437,24.7157777,215.26,215.23,0.03]
[1757369906640,13.59559401,215.24,215.23,0.03]
[1757369906854,21.33213706,215.24,215.23,35.97]
[1757369907137,22.05213706,215.24,215.23,0.03]
[1757369907721,25.51895581,215.24,215.23,0.03]
[1757369908336,30.16493239,215.24,215.23,0.03]
[1757369910429,13.59559401,215.2,215.18,0.03]
[1757369910615,21.33213706,215.19,215.18,0.03]
[1757369910815,22.05302906,215.19,215.18,0.03]
[1757369911922,25.51786918,215.19,215.18,0.03]
[1757369912313,4.6492166,215.09,215.07,0.72]
[1757369912517,8.92039895,215.09,215.07,0.72]
[1757369912740,20.54344046,215.09,215.06,14.36]
[1757369913041,13.59559401,215.13,215.07,0.72]
[1757369913248,3.46301378,215.12,215.07,0.72]
[1757369914052,4.64792005,215.15,215.07,0.72]
[1757369914426,18.24308204,215.17,215.07,5.36961358]
[1757369914749,4.64748803,215.17,215.08,0.72]
[1757369915446,4.64748803,215.17,215.09,4.6492166]
[1757369915645,4.64748803,215.17,215.1,0.72]
[1757369916646,4.64748803,215.17,215.1,5.36887953]
[1757369916947,4.64748803,215.17,215.11,0.72]
[1757369917930,134.5,215.18,215.11,5.36876802]
[1757369918134,134.5,215.18,215.12,0.72]
[1757369918331,4.64682899,215.21,215.12,0.72]
[1757369918531,3.46161508,215.2,215.12,0.72]
[1757369919028,4.18161508,215.2,215.12,0.72]
[1757369919346,3.46228303,215.19,215.12,0.72]
[1757369920254,4.64727205,215.18,215.12,0.72]
[1757369920558,4.64727205,215.18,215.13,35.94]
[1757369920739,4.64727205,215.18,215.14,0.7]
[1757369921049,4.64727205,215.18,215.15,0.7]
[1757369921349,4.64693842,215.2,215.16,0.7]
[1757369921539,3.46230958,215.19,215.17,0.7]
[1757369921927,3.46230958,215.19,215.15,0.7]
[1757369922128,3.46230958,215.19,215.16,0.7]
[1757369922439,8.10954078,215.19,215.16,0.7]
[1757369922748,4.6472312,215.19,215.13,35.94]
[1757369922946,4.6472312,215.19,215.14,0.7]
[1757369923142,0.67,215.18,215.15,35.94]
[1757369923451,0.67,215.17,215.15,35.94]
[1757369924146,4.64748146,215.18,215.15,35.94]
[1757369924446,5.3169919,215.2,215.15,35.94]
[1757369924752,4.13256835,215.19,215.15,36.64]
[1757369925149,3.46256835,215.19,215.15,35.94]
[1757369925349,134.5,215.23,215.16,0.7]
[1757369925957,135.17,215.23,215.16,0.7]
[1757369926243,3.46272037,215.22,215.17,4.64748803]
[1757369926451,3.46272037,215.22,215.18,0.7]
[1757369926638,3.46272037,215.22,215.19,0.7]
[1757369926947,0.67,215.21,215.16,0.7]
[1757369927155,4.64643797,215.22,215.17,0.7]
[1757369927461,4.64643797,215.22,215.18,0.7]
[1757369927950,4.64643797,215.22,215.19,0.7]
[1757369929047,4.64643797,215.22,215.16,4.6475518]
[1757369929234,5.31643797,215.22,215.17,0.7]
[1757369929549,3.4646051,215.21,215.15,36.64]
[1757369929748,4.1346051,215.21,215.15,36.64]
[1757369929954,4.1346051,215.21,215.16,0.7]
[1757369930150,4.1346051,215.21,215.17,0.7]
[1757369930760,8.11132341,215.21,215.17,0.7]
[1757369930934,4.64671831,215.21,215.18,0.7]
[1757369931878,18.24200233,215.22,215.18,0.7]
[1757369932036,3.46522922,215.21,215.18,0.7]
[1757369932241,3.46522922,215.21,215.18,0.73]
[1757369932835,3.46522922,215.21,215.19,0.7]
[1757369933031,0.06,215.22,215.19,0.7]
[1757369933255,0.06,215.22,215.18,4.677266]
[1757369933441,0.06,215.22,215.19,0.7]
[1757369934160,0.06,215.22,215.2,4.64684014]
[1757369934373,0.06,215.22,215.21,35.96]
[1757369934539,0.06,215.22,215.21,36.66]
[1757369938468,0.06,215.22,215.21,35.96]
[1757369940671,0.06,215.22,215.19,0.7]
[1757369940874,0.06,215.22,215.2,35.94]
[1757369941373,0.06,215.22,215.2,36.64]
[1757369941561,0.67,215.21,215.18,0.03]
[1757369941762,0.06,215.22,215.19,35.94]
[1757369941954,0.67,215.2,215.19,35.94]
[1757369942280,0.06,215.22,215.19,35.94]
[1757369942667,4.70640832,215.22,215.19,35.94]
[1757369942870,5.37640832,215.22,215.19,35.94]
[1757369943173,0.67,215.21,215.19,35.94]
[1757369943876,0.67,215.2,215.18,0.03]
[1757369944177,0.67,215.2,215.19,35.94]
[1757369944379,4.70640832,215.22,215.19,35.94]
[1757369944380,7.44110361,215.22,215.19,35.94]
[1757369944579,4.13442493,215.21,215.19,35.94]
[1757369944879,0.67,215.2,215.19,35.94]
[1757369946062,5.31684014,215.2,215.19,35.94]
[1757369948265,0.67,215.2,215.19,35.94]
[1757369948582,8.11336237,215.21,215.19,35.94]
[1757369948759,5.31663992,215.21,215.19,35.94]
[1757369949172,0.67,215.2,215.18,0.03]
[1757369949360,6.20206051,215.19,215.18,35.97]
[1757369949567,20.46765452,215.19,215.18,0.03]
[1757369949764,13.59559401,215.18,215.15,0.03]
[1757369949978,16.3302893,215.16,215.15,0.03]
[1757369950160,19.79765452,215.16,215.15,0.03]
[1757369950357,25.10535855,215.16,215.15,0.03]
[1757369954167,25.10361561,215.16,215.15,0.03]
[1757369955985,8.11332631,215.16,215.15,0.03]
[1757369956191,3.46562228,215.16,215.15,0.03]
[1757369956484,4.64770403,215.16,215.15,0.03]
[1757369957076,8.11293425,215.16,215.15,0.03]
[1757369958084,4.64770403,215.16,215.15,0.03]
[1757369958285,8.11348751,215.16,215.15,0.03]
[1757369962482,3.46578348,215.16,215.15,0.03]
[1757369962790,8.11348751,215.16,215.15,0.03]
[1757369962994,25.10377681,215.16,215.15,0.03]
[1757369966385,24.44377681,215.16,215.15,0.03]
[1757369967097,25.10377681,215.16,215.15,0.03]
[1757369968797,24.44377681,215.16,215.15,0.03]
[1757369969689,21.70908152,215.16,215.15,0.03]
[1757369970994,22.36908152,215.16,215.15,0.03]
[1757369972898,25.10377681,215.16,215.15,0.03]
[1757369980497,25.15377681,215.16,215.15,0.03]
[1757369982211,28.62035118,215.16,215.15,0.03]
[1757369984299,25.15377681,215.16,215.15,0.03]
[1757369985716,24.44377681,215.16,215.15,0.03]
[1757369986712,25.15377681,215.16,215.15,0.03]
[1757369987314,28.62411571,215.16,215.15,0.03]
[1757369988816,30.48419151,215.16,215.15,0.03]
[1757369990221,30.49168261,215.16,215.15,0.03]
[1757369993827,29.78168261,215.16,215.15,0.03]
[1757369994118,55.78168261,215.16,215.15,0.03]
[1757369995803,56.49168261,215.16,215.15,0.03]
[1757370000825,55.78168261,215.16,215.15,0.03]
[1757370001013,53.04698732,215.16,215.15,0.71]
[1757370001214,3.47180674,215.16,215.15,0.71]
[1757370001713,8.11951077,215.16,215.15,0.71]
[1757370002321,3.47180674,215.16,215.15,0.71]
[1757370002723,8.11951077,215.16,215.15,0.71]
[1757370005043,8.11951077,215.16,215.15,0.03]
[1757370005044,26.7008949,215.16,215.15,0.03]
[1757370005232,30.17608871,215.16,215.15,0.03]
[1757370005431,32.03616451,215.16,215.15,0.03]
[1757370007138,32.03616451,215.16,215.13,1e-08]
[1757370007139,39.59559401,215.14,215.13,1e-08]
[1757370007312,24.81838468,215.14,215.13,1e-08]
[1757370007517,50.81838468,215.14,215.13,1e-08]
[1757370007940,53.38863349,215.14,215.13,1e-08]
[1757370008141,52.67863349,215.14,215.13,1e-08]
[1757370008434,57.32676958,215.14,215.13,1e-08]
[1757370008640,55.46652077,215.14,215.13,1e-08]
[1757370009639,55.46652077,215.14,215.13,0.68000001]
[1757370010643,3.47180674,215.14,215.13,0.68000001]
[1757370011930,21.71553684,215.14,215.13,1e-08]
[1757370012247,56.13502604,215.14,215.13,1e-08]
[1757370012457,55.46502604,215.14,215.13,1e-08]
[1757370014430,56.13502604,215.14,215.13,1e-08]
[1757370016557,55.46502604,215.14,215.13,1e-08]
[1757370019454,29.46502604,215.14,215.13,1e-08]
[1757370019754,29.46502604,215.14,215.13,0.68000001]
[1757370019755,25.18923592,215.14,215.13,0.68000001]
[1757370020135,3.47180674,215.14,215.13,0.68000001]
[1757370020348,8.11994283,215.14,215.13,0.68000001]
[1757370020938,4.64813609,215.14,215.13,0.68000001]
[1757370021139,8.12366999,215.14,215.13,0.68000001]
[1757370021338,3.4755339,215.14,215.13,0.68000001]
[1757370022847,8.12366999,215.14,215.13,0.68000001]
[1757370024248,8.12366999,215.14,215.13,1e-08]
[1757370024442,8.79366999,215.14,215.13,1e-08]
[1757370024642,8.12366999,215.14,215.13,1e-08]
[1757370024857,8.18366999,215.14,215.13,1e-08]
[1757370025157,8.18318451,215.14,215.13,0.68000001]
[1757370025859,3.53504842,215.14,215.13,0.68000001]
[1757370026965,8.18318451,215.14,215.13,1e-08]
[1757370029647,8.18318451,215.14,215.13,0.68000001]
[1757370029961,3.53504842,215.14,215.13,0.68000001]
[1757370039863,3.53504842,215.14,215.13,1e-08]
[1757370042780,3.53504842,215.14,215.13,35.90000001]
[1757370046282,13.15897463,215.14,215.13,1e-08]
[1757370047159,26.75456864,215.14,215.13,1e-08]
[1757370047680,30.22713414,215.14,215.13,1e-08]
[1757370050662,26.75208572,215.14,215.13,1e-08]
[1757370050975,30.22442604,215.14,215.13,1e-08]
[1757370056763,25.94863592,215.14,215.13,1e-08]
[1757370056969,30.22531292,215.14,215.13,1e-08]
[1757370061080,56.22531292,215.14,215.13,1e-08]
[1757370061470,58.08556173,215.14,215.13,1e-08]
[1757370062369,32.08556173,215.14,215.13,1e-08]
[1757370062882,32.08556173,215.14,215.08,0.73]
[1757370062883,66.94658245,215.14,215.08,0.03]
[1757370063087,13.59559401,215.08,215.03,0.73]
[1757370063394,48.5214655,215.05,215.03,0.03]
[1757370063597,51.98958548,215.05,215.03,0.03]
[1757370064368,50.45401577,215.05,215.03,0.03]
[1757370064881,50.45401577,215.05,215.04,0.9]
[1757370065085,47.71379536,215.05,215.04,0.9]
[1757370065267,3.46811998,215.05,215.04,0.9]
[1757370069075,3.46811998,215.06,215.04,0.9]
[1757370069274,3.46811998,215.05,215.04,0.2]
[1757370069470,3.46811998,215.06,215.04,0.2]
[1757370069670,134.5,215.07,215.04,0.2]
[1757370069888,134.5,215.07,215.05,0.7]
[1757370070287,139.14965755,215.07,215.05,0.67]
[1757370071090,134.5,215.07,215.06,0.67]
[1757370071283,137.96159657,215.07,215.06,0.67]
[1757370072180,4.64951189,215.08,215.06,0.67]
[1757370073701,4.6492166,215.09,215.06,0.67]
[1757370073898,3.46115119,215.08,215.06,0.67]
[1757370074079,4.6492166,215.09,215.06,0.67]
[1757370074280,3.46096415,215.08,215.06,0.67]
[1757370074480,4.6492166,215.09,215.04,0.2]
[1757370074481,5.3192166,215.09,215.04,0.2]
[1757370074682,3.46096239,215.08,215.05,0.67]
[1757370074903,5.3192166,215.09,215.05,0.67]
[1757370075103,3.46096341,215.08,215.05,0.67]
[1757370075403,5.3192166,215.09,215.05,0.67]
[1757370075598,4.64964895,215.07,215.05,0.67]
[1757370075802,7.38986936,215.07,215.04,0.2]
[1757370075981,6.87088413,215.06,215.04,0.2]
[1757370076188,3.46066372,215.05,215.04,0.2]
[1757370076582,4.64964895,215.07,215.04,0.87]
[1757370076791,4.64964895,215.07,215.05,0.67]
[1757370076792,3.46044363,215.06,215.05,0.67]
[1757370076990,4.64964895,215.07,215.05,0.67]
[1757370077196,4.649298,215.09,215.05,0.67]
[1757370077398,3.46065196,215.08,215.05,0.67]
[1757370077604,3.46065196,215.07,215.05,0.67]
[1757370077792,2.74022041,215.11,215.05,0.67]
[1757370077793,13.59559401,215.11,215.05,0.67]
[1757370078000,0.06,215.09,215.05,0.67]
[1757370078196,3.46083678,215.08,215.05,0.67]
[1757370078398,0.06,215.09,215.05,0.67]
[1757370078601,3.46105194,215.08,215.05,0.67]
[1757370078903,0.06,215.09,215.05,0.67]
[1757370079101,3.46105508,215.08,215.05,0.67]
[1757370079302,0.06,215.09,215.05,0.67]
[1757370079505,3.46132012,215.08,215.05,0.67]
[1757370079707,3.4612726,215.07,215.04,0.87]
[1757370079912,5.37929943,215.09,215.04,0.87]
[1757370080090,3.46127109,215.08,215.05,0.67]
[1757370080404,3.46127109,215.07,215.05,0.67]
[1757370080605,5.37929943,215.09,215.05,0.67]
[1757370080804,8.11088621,215.08,215.05,0.67]
[1757370081008,3.46126023,215.07,215.05,0.67]
[1757370081210,3.46126023,215.07,215.04,0.2]
[1757370081414,3.46126023,215.07,215.05,0.67]
[1757370082020,3.46126023,215.07,215.06,0.67]
[1757370082593,3.46126023,215.08,215.06,0.67]
[1757370082797,3.46126023,215.07,215.06,0.67]
[1757370085516,3.46126023,215.07,215.04,0.2]
[1757370085705,4.64945094,215.08,215.05,0.67]
[1757370085907,3.463606,215.07,215.05,0.67]
[1757370086092,4.70922087,215.09,215.06,0.67]
[1757370086293,3.46411017,215.08,215.06,0.67]
[1757370086519,3.46411017,215.07,215.06,0.67]
[1757370087595,3.46411017,215.07,215.04,0.2]
[1757370087802,3.46411017,215.06,215.05,0.67]
[1757370088017,4.70922087,215.09,215.05,0.67]
[1757370088314,3.46473513,215.08,215.05,0.67]
[1757370088519,3.46473513,215.07,215.05,0.67]
[1757370088698,0.06,215.09,215.05,5.32001779]
[1757370088897,0.06,215.09,215.06,0.67]
[1757370089103,0.06,215.09,215.06,1.22798381]
[1757370089536,0.06,215.09,215.08,26.0]
[1757370089732,0.06,215.12,215.08,62.43793193]
[1757370090017,0.06,215.12,215.09,0.67]
[1757370090327,0.06,215.12,215.11,4.64878434]
[1757370090501,0.06,215.12,215.11,5.31878434]
[1757370090702,0.06,215.14,215.13,26.0]
[1757370090896,0.06,215.14,215.13,26.55780225]
[1757370091123,0.06,215.14,215.13,63.10780225]
[1757370092521,0.06,215.14,215.13,1.22780225]
[1757370092704,0.06,215.14,215.13,35.88]
[1757370093625,0.06,215.14,215.11,0.67]
[1757370093815,0.06,215.14,215.13,35.88]
[1757370094203,0.73,215.14,215.08,30.64923051]
[1757370094410,0.67,215.13,215.09,35.88]
[1757370094609,0.67,215.13,215.09,36.55]
[1757370095817,0.67,215.13,215.09,41.1992073]
[1757370096314,0.06,215.14,215.1,0.67]
[1757370096521,4.19165092,215.14,215.1,0.67]
[1757370096722,0.73,215.14,215.1,0.67]
[1757370099130,0.73,215.14,215.09,40.5292073]
[1757370099331,0.73,215.14,215.09,41.1992073]
[1757370099833,0.73,215.14,215.1,0.67]
[1757370100638,0.73,215.14,215.1,5.31898655]
[1757370106342,0.06,215.14,215.11,0.68]
[1757370106640,0.06,215.14,215.12,0.68]
[1757370106839,0.06,215.14,215.13,35.86]
[1757370110042,0.74,215.14,215.13,35.86]
[1757370113541,0.06,215.14,215.13,35.86]
[1757370117049,0.74,215.14,215.12,0.03]
[1757370117242,0.06,215.14,215.13,35.86]
[1757370117753,0.74,215.14,215.13,35.86]
[1757370118248,8.84831073,215.14,215.13,35.86]
[1757370118747,11.58853114,215.14,215.12,0.03]
[1757370118927,19.79598906,215.13,215.12,0.03]
[1757370119337,20.47598906,215.13,215.12,0.03]
[1757370119563,34.42785512,215.13,215.12,0.03]
[1757370120251,60.42785512,215.13,215.12,0.03]
[1757370120432,65.07620727,215.13,215.12,0.03]
[1757370121252,39.59559401,215.1,215.09,0.03]
[1757370121432,45.79598906,215.1,215.09,0.03]
[1757370121634,49.93557689,215.1,215.09,0.03]
[1757370122432,54.58457735,215.1,215.09,0.03]
[1757370123233,51.12498952,215.1,215.09,0.03]
[1757370126554,52.66504725,215.1,215.09,0.03]
[1757370126751,56.12328887,215.1,215.09,0.03]
[1757370128445,13.59559401,215.09,215.07,1e-08]
[1757370128653,24.79428841,215.08,215.07,1e-08]
[1757370128839,25.47428841,215.08,215.07,1e-08]
[1757370129045,27.33522958,215.08,215.07,1e-08]
[1757370129740,63.19522958,215.08,215.07,1e-08]
[1757370130668,67.84466234,215.08,215.07,1e-08]
[1757370135740,67.83510981,215.08,215.07,1e-08]
[1757370135945,64.38642072,215.08,215.07,1e-08]
[1757370136147,67.83510981,215.08,215.07,1e-08]
[1757370137041,13.59559401,215.05,215.04,0.2]
[1757370137243,21.33604679,215.05,215.04,0.2]
[1757370137441,22.05604679,215.05,215.04,0.2]
[1757370137746,23.91716114,215.05,215.04,0.2]
[1757370138862,28.56724251,215.05,215.04,0.2]
[1757370141658,39.59559401,215.02,215.01,0.03]
[1757370141863,47.32268079,215.02,215.01,0.03]
[1757370142097,17.87587215,215.01,215.0,1e-08]
[1757370142264,21.32268079,215.01,215.0,1e-08]
[1757370142447,22.04268079,215.01,215.0,1e-08]
[1757370142849,23.90414157,215.01,215.0,1e-08]
[1757370143564,28.55508803,215.01,215.0,1e-08]
[1757370144864,64.41508803,215.01,215.0,1e-08]
[1757370147276,28.55508803,215.01,215.0,1e-08]
[1757370147581,64.41508803,215.01,215.0,1e-08]
[1757370149880,26.0,214.94,214.93,0.66]
[1757370150059,48.5283333,214.94,214.93,0.66]
[1757370150380,48.5283333,214.94,214.92,0.66]
[1757370150582,17.87587215,214.93,214.92,0.66]
[1757370151475,13.59559401,214.91,214.89,34.02]
[1757370151678,17.87587215,214.9,214.89,33.36]
[1757370152275,17.87587215,214.9,214.89,34.02]
[1757370152480,22.52919927,214.9,214.89,34.02]
[1757370157789,134.5,214.93,214.89,38.67348512]
[1757370157964,134.5,214.93,214.9,0.66]
[1757370158166,148.09559401,214.92,214.9,0.66]
[1757370158362,13.59559401,214.9,214.82,35.86]
[1757370158566,4.28027814,214.87,214.82,35.86]
[1757370158773,8.9341494,214.88,214.82,35.86]
[1757370158979,4.28027814,214.87,214.83,0.66]
[1757370159191,4.65387126,214.88,214.83,0.66]
[1757370159192,4.28027814,214.86,214.83,0.66]
[1757370160980,8.93458383,214.86,214.83,0.66]
[1757370162695,4.28027814,214.85,214.83,0.66]
[1757370165068,4.28027814,214.86,214.83,0.66]
[1757370165483,4.28027814,214.89,214.83,5.31473942]
[1757370165689,4.28027814,214.89,214.84,0.69]
[1757370165887,4.28027814,214.88,214.84,0.69]
[1757370167171,8.93406768,214.88,214.84,0.69]
[1757370168003,4.28027814,214.89,214.84,0.69]
[1757370168296,3.44520553,214.88,214.84,0.69]
[1757370168985,3.44520553,214.88,214.84,5.34459087]
[1757370169188,3.44520553,214.88,214.85,0.69]
[1757370169696,4.28027814,214.89,214.85,0.69]
[1757370170988,4.65357106,214.89,214.85,0.69]
[1757370171786,4.28027814,214.9,214.85,0.69]
[1757370171988,3.44758826,214.89,214.85,0.69]
[1757370172302,3.44758826,214.89,214.86,0.69]
[1757370172478,3.44758826,214.89,214.87,35.98]
[1757370172678,3.44758826,214.89,214.87,36.67]
[1757370173385,12.38141979,214.89,214.87,36.67]
[1757370173586,8.93383153,214.89,214.87,36.67]
[1757370174996,3.44936842,214.88,214.87,35.98]
[1757370175294,8.93383153,214.89,214.87,35.98]
[1757370175694,8.93383153,214.89,214.87,36.67]
[1757370176792,18.91889579,214.91,214.87,36.67]
[1757370176991,7.73057356,214.9,214.87,35.98]
[1757370177193,18.91889579,214.91,214.88,0.69]
[1757370177501,4.28027814,214.89,214.87,35.98]
[1757370177701,18.91889579,214.91,214.87,36.67]
[1757370177996,4.28027814,214.89,214.87,36.67]
[1757370178703,4.28027814,214.89,214.88,0.69]
[1757370179002,4.28027814,214.89,214.87,35.98]
[1757370179213,4.28027814,214.89,214.87,36.67]
[1757370179394,4.28027814,214.89,214.87,35.98]
[1757370179615,4.28027814,214.89,214.87,36.67]
[1757370180908,4.28027814,214.88,214.87,36.67]
[1757370182194,4.28027814,214.89,214.87,36.67]
[1757370182495,4.65345391,214.9,214.87,36.67]
[1757370182702,3.45330205,214.89,214.87,36.67]
[1757370183202,8.10687655,214.89,214.87,36.67]
[1757370183378,4.6535745,214.89,214.87,36.67]
[1757370184499,3.45590864,214.88,214.87,36.67]
[1757370185895,4.95027814,214.91,214.87,36.67]
[1757370186084,8.1111284,214.9,214.88,0.69]
[1757370186403,3.45780128,214.89,214.88,0.69]
[1757370186592,3.45780128,214.89,214.87,35.98]
[1757370186786,3.45780128,214.88,214.87,36.67]
[1757370187588,3.45780128,214.88,214.87,35.98]
[1757370188310,3.45780128,214.88,214.87,36.67]
[1757370198710,3.45780128,214.88,214.87,36.57]
[1757370199012,8.11156151,214.88,214.87,0.69]
[1757370199203,8.82156151,214.88,214.87,35.88]
[1757370201217,8.11156151,214.88,214.87,35.88]
[1757370202998,8.11156151,214.88,214.86,0.66]
[1757370203197,8.11190067,214.87,214.83,0.03]
[1757370203401,3.45780128,214.86,214.84,36.54]
[1757370203600,3.45780128,214.85,214.83,0.03]
[1757370203804,3.45780128,214.84,214.83,0.03]
[1757370204416,3.45780128,214.84,214.83,35.91]
[1757370204716,3.45780128,214.84,214.83,36.57]
[1757370205999,0.71,214.93,214.83,36.57]
[1757370206200,7.64842292,214.91,214.84,0.66]
[1757370206408,8.12258797,214.9,214.84,5.31451605]
[1757370206725,3.46921559,214.89,214.85,0.66]
[1757370207035,4.65337238,214.9,214.85,0.66]
[1757370207036,3.46921559,214.88,214.85,0.66]
[1757370207220,3.46921559,214.87,214.85,0.66]
[1757370207534,3.46921559,214.86,214.85,0.66]
[1757370207905,3.46921559,214.86,214.85,5.31441005]
[1757370209134,134.5,214.92,214.85,16.95043518]
[1757370209321,3.46817192,214.91,214.86,0.66]
[1757370209493,3.46817192,214.9,214.87,35.88]
[1757370209697,0.71,214.94,214.88,0.66]
[1757370209698,3.46817192,214.89,214.88,0.66]
[1757370209998,4.71198121,214.97,214.88,5.31376023]
[1757370210324,0.71,214.95,214.89,0.66]
[1757370210503,3.4685656,214.94,214.89,0.66]
[1757370210703,0.71,214.95,214.89,0.66]
[1757370210704,3.4685656,214.93,214.89,0.66]
[1757370210899,3.4685656,214.92,214.89,0.66]
[1757370211103,0.71,214.95,214.9,4.65332712]
[1757370211297,3.46494639,214.94,214.91,36.54]
[1757370211500,3.46494639,214.93,214.91,36.54]
[1757370211734,3.46494639,214.92,214.91,36.54]
[1757370213728,3.46494639,214.92,214.91,41.1931106]
[1757370214332,0.71,214.96,214.91,41.1931106]
[1757370214517,3.45986049,214.95,214.92,0.66]
[1757370214722,3.45986049,214.94,214.92,0.66]
[1757370214931,3.45986049,214.93,214.92,0.66]
[1757370215728,3.45986049,214.93,214.92,5.3128941]
[1757370216811,0.06,214.97,214.92,5.3128941]
[1757370217012,0.06,214.97,214.93,0.66]
[1757370217013,3.45813503,214.96,214.93,0.66]
[1757370217212,3.45813503,214.95,214.94,35.86]
[1757370217426,3.45813503,214.95,214.94,36.52]
[1757370219232,0.06,214.97,214.94,41.17242686]
[1757370219417,3.45527641,214.96,214.94,41.17242686]
[1757370219618,0.06,214.97,214.94,41.17242686]
[1757370219825,3.45527641,214.96,214.94,41.17242686]
[1757370220119,0.06,214.97,214.94,41.17242686]
[1757370220318,3.45451888,214.96,214.94,41.17242686]
[1757370220521,0.06,214.97,214.94,41.17242686]
[1757370220705,3.45456292,214.96,214.94,41.17242686]
[1757370220906,0.06,214.97,214.94,41.17242686]
[1757370221109,3.45451859,214.96,214.94,41.17242686]
[1757370221410,0.06,214.97,214.94,41.17242686]
[1757370221613,3.45381116,214.96,214.94,41.17242686]
[1757370221830,0.06,214.97,214.94,41.17242686]
[1757370222031,3.45381087,214.96,214.94,41.17242686]
[1757370222219,0.06,214.97,214.94,41.17242686]
[1757370222418,3.45309875,214.96,214.95,0.69]
[1757370222643,0.06,214.97,214.95,5.34220811]
[1757370223109,0.06,214.97,214.96,0.69]
[1757370223312,3.51250961,214.97,214.95,0.69]
[1757370223527,0.06,214.97,214.95,0.69]
[1757370223734,0.68,214.96,214.91,26.0]
[1757370224029,4.13227155,214.95,214.92,61.86]
[1757370224215,0.68,214.95,214.92,61.86]
[1757370224415,0.68,214.95,214.92,35.86]
[1757370224817,0.68,214.95,214.91,5.34302608]
[1757370225022,0.68,214.95,214.92,0.69]
[1757370225328,0.68,214.95,214.93,35.86]
[1757370225526,0.06,214.97,214.94,0.69]
[1757370225717,0.06,214.97,214.95,0.69]
[1757370225926,0.06,214.97,214.96,35.86]
[1757370226217,3.51190723,214.97,214.96,35.86]
[1757370227842,3.51190723,214.97,214.96,36.55]
[1757370228327,3.51190723,214.97,214.96,35.86]
[1757370229237,0.06,214.97,214.96,35.86]
[1757370229828,0.06,214.97,214.96,41.20202828]
[1757370236238,0.06,214.97,214.96,5.34202828]
[1757370236447,0.06,214.97,214.96,41.20202828]
[1757370237341,0.06,214.97,214.96,5.34202828]
[1757370237647,0.06,214.97,214.96,41.18202828]
[1757370238020,0.74,214.97,214.94,30.65224508]
[1757370238217,2.74359614,214.95,214.89,4.65348488]
[1757370238436,0.68,214.94,214.89,4.65348488]
[1757370238639,0.68,214.93,214.9,35.84]
[1757370238842,0.68,214.92,214.91,35.84]
[1757370240040,3.42359614,214.94,214.91,35.84]
[1757370240222,4.65215896,214.96,214.91,35.84]
[1757370240223,2.74359614,214.95,214.91,35.84]
[1757370240544,0.68,214.93,214.91,35.84]
[1757370243053,4.71182884,214.97,214.91,35.84]